[Event "GER-ch Youth U10 2019"]
[Site "Willingen"]
[Date "2019.06.10"]
[Round "3.8"]
[White "Möller, Tom"]
[Black "Haubold, Christian Lucas"]
[Result "0-1"]
[ECO "B23"]
[WhiteElo "1229"]
[BlackElo "1387"]
[Annotator "NA"]
[PlyCount "52"]
[EventDate "2019.06.07"]
[EventType "swiss"]
[EventRounds "11"]
[EventCountry "GER"]
[SourceTitle "playchess.com"]
[Source "ChessBase"]
[SourceQuality "1"]
[TimeControl "40/4500+30:900+30"]

1. e4 {[%emt 0:00:00]} c5 {[%emt 0:00:00]} 2. Nc3 {[%emt 0:00:00]} d6 {[%emt 0:00:00]} 3. d3 {[%emt 0:00:00]} Nf6 {[%emt 0:00:20]} 4. f3 {[%emt 0:00:26]} g6 {[%emt 0:00:27]} 5. Be3 {[%emt 0:00:08]} Bg7 {[%emt 0:00:17]} 6. Qd2 {[%emt 0:00:27]} Bd7 {[%emt 0:00:22]} 7. Nge2 {[%emt 0:00:44]} Nc6 {[%emt 0:01:00]} 8. g3 {[%emt 0:01:13]} O-O {[%emt 0:02:04]} 9. Bh6 {[%emt 0:00:49]} b5 {[%emt 0:06:41]} 10. h4 {[%emt 0:08:30]} b4 {[%emt 0:00:39]} 11. Nd1 {[%emt 0:00:09]} a5 {[%emt 0:06:25]} 12. h5 {[%emt 0:05:33]} a4 {[%emt 0:01:17]} 13. a3 {[%emt 0:14:48]} Qb6 {[%emt 0:05:25]} 14. c3 {[%emt 0:03:46]} bxa3 {[%emt 0:00:47]} 15. bxa3 {[%emt 0:00:52]} Na5 {[%emt 0:00:25]} 16. hxg6 {[%emt 0:00:36]} fxg6 {[%emt 0:00:25]} 17. Qa2+ {[%emt 0:01:05]} Qb3 {[%emt 0:00:44]} 18. Bxg7 {[%emt 0:04:07]} Qxa2 {[%emt 0:00:45]} 19. Rxa2 {[%emt 0:00:12]} Kxg7 {[%emt 0:00:08]} 20. Bh3 {[%emt 0:03:26]} Rab8 {[%emt 0:00:43]} 21. Rb2 {[%emt 0:03:27]} Rxb2 {[%emt 0:00:17]} 22. Nxb2 {[%emt 0:00:07]} e6 {[%emt 0:00:22]} 23. Kf2 {[%emt 0:01:55]} Rb8 {[%emt 0:00:13]} 24. Rb1 {[%emt 0:00:39]} Rb3 {[%emt 0:00:38]} 25. Nc4 {[%emt 0:02:45]} Nxc4 {[%emt 0:02:27]} 26. Ra1 {[%emt 0:00:33]} Rxa3 {[%emt 0:00:30] normal} 0-1

[Event "GER-ch Youth U10 2019"]
[Site "Willingen"]
[Date "2019.06.10"]
[Round "3.9"]
[White "Birkenheier, Nicolas"]
[Black "Arora, Abhiraaj"]
[Result "0-1"]
[ECO "C50"]
[WhiteElo "1160"]
[BlackElo "1454"]
[Annotator "NA"]
[PlyCount "96"]
[EventDate "2019.06.07"]
[EventType "swiss"]
[EventRounds "11"]
[EventCountry "GER"]
[SourceTitle "playchess.com"]
[Source "ChessBase"]
[SourceQuality "1"]
[TimeControl "40/4500+30:900+30"]

1. e4 {[%emt 0:00:00]} e5 {[%emt 0:00:00]} 2. Nf3 {[%emt 0:00:00]} Nc6 {[%emt 0:00:00]} 3. Bc4 {[%emt 0:00:42]} Bc5 {[%emt 0:00:00]} 4. d3 {[%emt 0:01:11]} d6 {[%emt 0:00:00]} 5. c3 {[%emt 0:03:15]} Nf6 {[%emt 0:00:32]} 6. O-O {[%emt 0:02:11]} Bg4 {[%emt 0:00:21]} 7. Nbd2 {[%emt 0:04:51]} O-O {[%emt 0:00:39]} 8. h3 {[%emt 0:01:42]} Bh5 {[%emt 0:00:07]} 9. Re1 {[%emt 0:03:42]} a6 {[%emt 0:02:19]} 10. Bb3 {[%emt 0:06:22]} Re8 {[%emt 0:00:35]} 11. Nf1 {[%emt 0:06:28]} d5 {[%emt 0:03:20]} 12. Ng3 {[%emt 0:19:44]} Bg6 {[%emt 0:10:51]} 13. Nh4 {[%emt 0:06:56]} Nxe4 {[%emt 0:05:25]} 14. dxe4 {[%emt 0:16:58]} Qxh4 {[%emt 0:03:24]} 15. exd5 {[%emt 0:04:07]} Qxg3 {[%emt 0:03:55]} 16. Qe2 {[%emt 0:03:10]} Ne7 {[%emt 0:01:20]} 17. Be3 {[%emt 0:00:46]} Bxe3 {[%emt 0:00:18]} 18. Qxe3 {[%emt 0:00:14]} Qxe3 {[%emt 0:00:11]} 19. Rxe3 {[%emt 0:00:19]} Nf5 {[%emt 0:00:33]} 20. Re2 {[%emt 0:00:17]} Nd6 {[%emt 0:00:31]} 21. Rae1 {[%emt 0:00:21]} e4 {[%emt 0:00:31]} 22. c4 {[%emt 0:00:48]} Rad8 {[%emt 0:01:25]} 23. c5 {[%emt 0:00:33]} Nb5 {[%emt 0:00:08]} 24. Rd1 {[%emt 0:00:45]} h5 {[%emt 0:02:03]} 25. Red2 {[%emt 0:01:09]} e3 {[%emt 0:01:34]} 26. fxe3 {[%emt 0:00:13]} Rxe3 {[%emt 0:00:34]} 27. Bc4 {[%emt 0:01:04]} Na7 {[%emt 0:01:51]} 28. d6 {[%emt 0:00:24]} cxd6 {[%emt 0:00:44]} 29. cxd6 {[%emt 0:00:14]} Nc8 {[%emt 0:01:27]} 30. Kf2 {[%emt 0:00:59]} Re5 {[%emt 0:00:50]} 31. d7 {[%emt 0:00:28]} Nb6 {[%emt 0:00:06]} 32. Bb3 {[%emt 0:00:33]} Re7 {[%emt 0:00:13]} 33. g3 {[%emt 0:00:32]} Rexd7 {[%emt 0:00:13]} 34. Rxd7 {[%emt 0:00:19]} Rxd7 {[%emt 0:00:08]} 35. Re1 {[%emt 0:00:18]} Rd2+ {[%emt 0:00:12]} 36. Kg1 {[%emt 0:00:23]} Kf8 {[%emt 0:00:26]} 37. h4 {[%emt 0:00:57]} Rxb2 {[%emt 0:00:24]} 38. Re3 {[%emt 0:00:30]} Bc2 {[%emt 0:01:32]} 39. Bxc2 {[%emt 0:00:31]} Rxc2 {[%emt 0:00:08]} 40. Ra3 {[%emt 0:00:32]} Nc4 {[%emt 0:01:03]} 41. Rb3 {[%emt 0:15:28]} b5 {[%emt 0:15:30]} 42. Rd3 {[%emt 0:00:30]} Rxa2 {[%emt 0:01:03]} 43. Kh1 {[%emt 0:00:31]} Ne5 {[%emt 0:00:31]} 44. Re3 {[%emt 0:00:26] normal} b4 {[%emt 0:03:00] normal} 45. Rxe5 {[%emt 0:00:34] normal} b3 {[%emt 0:00:31] normal} 46. Re4 {[%emt 0:00:27] normal} b2 {[%emt 0:00:43]} 47. Rb4 {[%emt 0:00:15] normal} Ra1+ {[%emt 0:00:12] normal} 48. Kh2 {[%emt 0:00:16]} b1=Q {[%emt 0:00:12] normal} 0-1

[Event "GER-ch Youth U10 2019"]
[Site "Willingen"]
[Date "2019.06.10"]
[Round "4.1"]
[White "Sauer, Tim"]
[Black "Besou, Hussain"]
[Result "0-1"]
[ECO "A25"]
[WhiteElo "1553"]
[BlackElo "1785"]
[Annotator "NA"]
[PlyCount "36"]
[EventDate "2019.06.07"]
[EventType "swiss"]
[EventRounds "11"]
[EventCountry "GER"]
[SourceTitle "playchess.com"]
[Source "ChessBase"]
[SourceQuality "1"]
[TimeControl "40/4500+30:900+30"]

1. c4 {[%emt 0:00:00]} e5 {[%emt 0:00:00]} 2. Nc3 {[%emt 0:00:00]} Nc6 {[%emt 0:00:00]} 3. g3 {[%emt 0:00:00]} g6 {[%emt 0:00:00]} 4. Bg2 {[%emt 0:00:00]} d6 {[%emt 0:00:04]} 5. e3 {[%emt 0:00:31]} Bg7 {[%emt 0:00:07]} 6. Nge2 Nh6 7. O-O {[%emt 0:05:38]} Be6 {[%emt 0:00:48]} 8. b3 {[%emt 0:05:33]} Qd7 {[%emt 0:00:28]} 9. d4 {[%emt 0:07:56]} Bh3 {[%emt 0:00:24]} 10. d5 {[%emt 0:01:57]} Bxg2 {[%emt 0:00:26]} 11. Kxg2 {[%emt 0:00:10]} Ne7 {[%emt 0:00:15]} 12. Bb2 {[%emt 0:02:14]} O-O {[%emt 0:00:11]} 13. Ne4 {[%emt 0:14:30]} Ng4 {[%emt 0:04:18]} 14. h3 {[%emt 0:07:43]} Nf6 {[%emt 0:00:07]} 15. Nxf6+ {[%emt 0:01:24]} Bxf6 {[%emt 0:00:12]} 16. e4 {[%emt 0:00:56]} Bg7 {[%emt 0:00:15]} 17. f4 {[%emt 0:04:40]} f5 {[%emt 0:00:35]} 18. Qc2 {[%emt 0:02:18]} Rae8 {[%emt 0:05:11] normal} 0-1

[Event "GER-ch Youth U10 2019"]
[Site "Willingen"]
[Date "2019.06.10"]
[Round "4.2"]
[White "Ermitsch, Magnus"]
[Black "Grabs, Peter"]
[Result "0-1"]
[ECO "C06"]
[WhiteElo "1843"]
[BlackElo "1575"]
[Annotator "NA"]
[PlyCount "87"]
[EventDate "2019.06.07"]
[EventType "swiss"]
[EventRounds "11"]
[EventCountry "GER"]
[SourceTitle "playchess.com"]
[Source "ChessBase"]
[SourceQuality "1"]
[TimeControl "40/4500+30:900+30"]

1. e4 {[%emt 0:00:34]} e6 {[%emt 0:00:00]} 2. d4 {[%emt 0:00:42]} d5 {[%emt 0:00:00]} 3. Nd2 {[%emt 0:01:38]} Nf6 {[%emt 0:00:00]} 4. e5 {[%emt 0:01:00]} Nfd7 {[%emt 0:00:00]} 5. Bd3 {[%emt 0:00:52]} c5 {[%emt 0:00:24]} 6. c3 {[%emt 0:00:48]} Nc6 {[%emt 0:00:23]} 7. Ne2 {[%emt 0:01:02]} cxd4 {[%emt 0:00:34]} 8. cxd4 {[%emt 0:02:41]} f6 {[%emt 0:06:22]} 9. exf6 {[%emt 0:01:26]} Nxf6 {[%emt 0:00:35]} 10. O-O {[%emt 0:01:59]} Bd6 {[%emt 0:00:14]} 11. Nf3 {[%emt 0:01:35]} O-O {[%emt 0:00:21]} 12. Bf4 {[%emt 0:01:39]} Bxf4 {[%emt 0:00:58]} 13. Nxf4 {[%emt 0:00:21]} Qd6 {[%emt 0:07:20]} 14. Qc1 {[%emt 0:01:22]} Bd7 {[%emt 0:00:26]} 15. Re1 {[%emt 0:01:51]} Rac8 {[%emt 0:03:13]} 16. Ng5 {[%emt 0:16:48]} Nxd4 {[%emt 0:02:23]} 17. Qe3 {[%emt 0:01:07]} Nf5 {[%emt 0:07:34]} 18. Qe5 {[%emt 0:03:55]} Qxe5 {[%emt 0:07:33]} 19. Rxe5 {[%emt 0:00:01]} Rfe8 {[%emt 0:01:53]} 20. Rae1 {[%emt 0:04:21]} Nd4 {[%emt 0:01:11]} 21. h3 {[%emt 0:07:27]} Nc6 {[%emt 0:02:36]} 22. R5e3 {[%emt 0:08:56]} e5 {[%emt 0:02:07]} 23. Nh5 {[%emt 0:02:21]} e4 {[%emt 0:02:09]} 24. Nxf6+ {[%emt 0:02:33]} gxf6 {[%emt 0:00:32]} 25. Bxe4 {[%emt 0:01:51]} dxe4 {[%emt 0:03:01]} 26. Nxe4 {[%emt 0:00:12]} Re6 {[%emt 0:03:25]} 27. Rd1 {[%emt 0:01:30]} Be8 {[%emt 0:03:51]} 28. Rd6 {[%emt 0:00:56]} Kf7 {[%emt 0:09:51]} 29. Ng5+ {[%emt 0:00:29]} fxg5 {[%emt 0:01:05]} 30. Rdxe6 {[%emt 0:00:54]} Rd8 {[%emt 0:02:11]} 31. R6e4 {[%emt 0:00:54]} h6 {[%emt 0:06:18]} 32. h4 {[%emt 0:02:16]} Rd1+ {[%emt 0:03:00]} 33. Kh2 {[%emt 0:00:09]} Bd7 {[%emt 0:00:19]} 34. hxg5 {[%emt 0:01:19]} hxg5 {[%emt 0:00:12]} 35. Rg3 {[%emt 0:01:44]} Kg6 {[%emt 0:01:46]} 36. Rge3 {[%emt 0:05:37]} Rd2 {[%emt 0:00:53]} 37. Re2 {[%emt 0:00:44]} Rd1 {[%emt 0:02:57]} 38. f3 {[%emt 0:02:35]} Rd3 {[%emt 0:00:50]} 39. R4e3 {[%emt 0:00:15]} Rd4 {[%emt 0:00:22]} 40. Kg3 {[%emt 0:01:08]} Kf5 {[%emt 0:01:52]} 41. Re4 {[%emt 0:19:56]} Rd3 {[%emt 0:15:46]} 42. Re1 {[%emt 0:00:34]} Rd2 {[%emt 0:00:27]} 43. R4e2 {[%emt 0:00:51]} Rd3 {[%emt 0:00:13]} 44. Rh1 {[%emt 0:00:00] normal} 0-1

[Event "GER-ch Youth U10 2019"]
[Site "Willingen"]
[Date "2019.06.10"]
[Round "4.3"]
[White "Haubold, Christian Lucas"]
[Black "Helms, Finn"]
[Result "0-1"]
[ECO "B15"]
[WhiteElo "1387"]
[BlackElo "1773"]
[Annotator "NA"]
[PlyCount "63"]
[EventDate "2019.06.07"]
[EventType "swiss"]
[EventRounds "11"]
[EventCountry "GER"]
[SourceTitle "playchess.com"]
[Source "ChessBase"]
[SourceQuality "1"]
[TimeControl "40/4500+30:900+30"]

1. e4 {[%emt 0:00:00]} c6 {[%emt 0:00:00]} 2. d4 {[%emt 0:00:00]} d5 {[%emt 0:00:00]} 3. Nd2 {[%emt 0:01:06]} dxe4 {[%emt 0:00:00]} 4. Nxe4 {[%emt 0:00:07]} Nf6 {[%emt 0:00:00]} 5. Ng3 {[%emt 0:05:05]} Bg4 {[%emt 0:00:40]} 6. Be2 {[%emt 0:02:59]} Bxe2 {[%emt 0:01:48]} 7. N1xe2 {[%emt 0:02:28]} e6 {[%emt 0:01:08]} 8. O-O {[%emt 0:02:14]} h5 {[%emt 0:01:30]} 9. Qd3 {[%emt 0:07:57]} Bd6 {[%emt 0:04:17]} 10. Bg5 {[%emt 0:01:45]} Qc7 {[%emt 0:03:52]} 11. h3 {[%emt 0:00:16]} Nbd7 {[%emt 0:00:49]} 12. c4 {[%emt 0:00:42]} h4 {[%emt 0:01:21]} 13. Ne4 {[%emt 0:02:40]} Nxe4 {[%emt 0:02:19]} 14. Qxe4 {[%emt 0:00:40]} Nf6 {[%emt 0:00:55]} 15. Qf3 {[%emt 0:06:09]} O-O-O {[%emt 0:09:32]} 16. Rfc1 {[%emt 0:01:27]} Rdg8 {[%emt 0:02:20]} 17. d5 {[%emt 0:04:54]} exd5 {[%emt 0:01:24]} 18. Bxf6 {[%emt 0:01:28]} gxf6 {[%emt 0:00:33]} 19. cxd5 {[%emt 0:00:07]} c5 {[%emt 0:00:30]} 20. b4 {[%emt 0:00:59]} b6 {[%emt 0:00:45]} 21. a4 {[%emt 0:04:20]} Kb8 {[%emt 0:04:42]} 22. a5 {[%emt 0:07:09]} Qb7 {[%emt 0:01:29]} 23. bxc5 {[%emt 0:00:37]} Bxc5 {[%emt 0:00:47]} 24. axb6 {[%emt 0:04:11]} Bxb6 {[%emt 0:01:09]} 25. Rab1 {[%emt 0:00:45]} Rg5 {[%emt 0:00:49]} 26. Qf4+ {[%emt 0:00:34]} Ka8 {[%emt 0:00:17]} 27. Qxf6 {[%emt 0:02:19]} Rhg8 {[%emt 0:01:10]} 28. Nf4 {[%emt 0:01:00]} Qd7 {[%emt 0:12:23]} 29. Qc6+ {[%emt 0:00:46]} Qb7 {[%emt 0:00:40]} 30. Qxb7+ {[%emt 0:00:05]} Kxb7 {[%emt 0:00:06]} 31. d6 {[%emt 0:00:18]} Rf5 {[%emt 0:01:46]} 32. Nd3 {[%emt 0:01:27] normal} 0-1

[Event "GER-ch Youth U10 2019"]
[Site "Willingen"]
[Date "2019.06.10"]
[Round "4.4"]
[White "Sommer, Justus"]
[Black "Arora, Abhiraaj"]
[Result "1-0"]
[ECO "C54"]
[WhiteElo "1684"]
[BlackElo "1454"]
[Annotator "NA"]
[PlyCount "64"]
[EventDate "2019.06.07"]
[EventType "swiss"]
[EventRounds "11"]
[EventCountry "GER"]
[SourceTitle "playchess.com"]
[Source "ChessBase"]
[SourceQuality "1"]
[TimeControl "40/4500+30:900+30"]

1. e4 {[%emt 0:01:05]} e5 {[%emt 0:00:00]} 2. Nf3 {[%emt 0:00:11]} Nc6 {[%emt 0:00:00]} 3. Bc4 {[%emt 0:00:10]} Bc5 {[%emt 0:00:00]} 4. c3 {[%emt 0:00:06]} Nf6 {[%emt 0:00:00]} 5. d3 {[%emt 0:00:05]} d6 {[%emt 0:00:25]} 6. a4 {[%emt 0:00:10]} a6 {[%emt 0:00:39]} 7. Bb3 {[%emt 0:00:34]} Bg4 {[%emt 0:00:30]} 8. Nbd2 {[%emt 0:00:40]} d5 {[%emt 0:01:24]} 9. exd5 {[%emt 0:01:06]} Nxd5 {[%emt 0:01:16]} 10. Ne4 {[%emt 0:00:28]} Bb6 {[%emt 0:01:17]} 11. O-O {[%emt 0:01:51]} O-O {[%emt 0:01:30]} 12. Re1 {[%emt 0:02:40]} Re8 {[%emt 0:00:35]} 13. Ng3 {[%emt 0:02:06]} Nf4 {[%emt 0:03:04]} 14. d4 {[%emt 0:05:09]} Ng6 {[%emt 0:01:14]} 15. h3 {[%emt 0:01:25]} Bxf3 {[%emt 0:02:44]} 16. Qxf3 {[%emt 0:01:15]} Qd7 {[%emt 0:04:26]} 17. d5 {[%emt 0:06:47]} Na7 {[%emt 0:05:15]} 18. a5 {[%emt 0:05:01]} Bc5 {[%emt 0:00:39]} 19. Ne4 {[%emt 0:00:25]} Be7 {[%emt 0:02:58]} 20. Be3 {[%emt 0:06:38]} Nb5 {[%emt 0:06:42]} 21. c4 {[%emt 0:03:52]} Nd4 {[%emt 0:01:33]} 22. Bxd4 {[%emt 0:00:09]} exd4 {[%emt 0:00:13]} 23. c5 {[%emt 0:06:29]} Nh4 {[%emt 0:04:50]} 24. Qd3 {[%emt 0:04:02]} f5 {[%emt 0:02:52]} 25. d6+ {[%emt 0:01:56]} Kh8 {[%emt 0:00:50]} 26. dxe7 {[%emt 0:00:46]} fxe4 {[%emt 0:00:57]} 27. Rxe4 {[%emt 0:00:46]} Nf5 {[%emt 0:00:47]} 28. Be6 {[%emt 0:00:22]} Qxe7 {[%emt 0:02:21]} 29. Bxf5 {[%emt 0:00:18]} Qxc5 {[%emt 0:00:19]} 30. Rxd4 {[%emt 0:01:57]} h6 {[%emt 0:01:24]} 31. b4 {[%emt 0:04:05]} Qe5 {[%emt 0:01:14]} 32. Rd1 {[%emt 0:02:40]} b6 {[%emt 0:04:39] normal} 1-0

[Event "GER-ch Youth U10 2019"]
[Site "Willingen"]
[Date "2019.06.10"]
[Round "4.5"]
[White "Fietz, Nils"]
[Black "Klaska, Philipp Leon"]
[Result "1/2-1/2"]
[ECO "B07"]
[WhiteElo "1677"]
[BlackElo "1444"]
[Annotator "NA"]
[PlyCount "62"]
[EventDate "2019.06.07"]
[EventType "swiss"]
[EventRounds "11"]
[EventCountry "GER"]
[SourceTitle "playchess.com"]
[Source "ChessBase"]
[SourceQuality "1"]
[TimeControl "40/4500+30:900+30"]

1. e4 {[%emt 0:00:00]} d6 {[%emt 0:00:00]} 2. d4 {[%emt 0:00:00]} Nf6 {[%emt 0:00:00]} 3. Nc3 {[%emt 0:00:00]} g6 {[%emt 0:00:00]} 4. Bc4 {[%emt 0:00:00]} Bg7 {[%emt 0:00:00]} 5. Qe2 {[%emt 0:00:11]} e5 {[%emt 0:01:41]} 6. dxe5 {[%emt 0:01:03]} dxe5 {[%emt 0:00:19]} 7. Nf3 {[%emt 0:01:08]} Nbd7 {[%emt 0:01:49]} 8. Be3 {[%emt 0:00:49]} O-O {[%emt 0:01:59]} 9. O-O {[%emt 0:00:39]} c6 {[%emt 0:01:35]} 10. Rad1 {[%emt 0:00:58]} Qc7 {[%emt 0:01:55]} 11. Ng5 {[%emt 0:01:42]} h6 {[%emt 0:02:18]} 12. Nxf7 {[%emt 0:06:11]} Rxf7 {[%emt 0:00:14]} 13. Bxf7+ {[%emt 0:00:32]} Kxf7 {[%emt 0:00:06]} 14. Qc4+ {[%emt 0:00:09]} Kf8 {[%emt 0:05:00]} 15. Bc5+ {[%emt 0:01:18]} Nxc5 {[%emt 0:01:04]} 16. Qxc5+ {[%emt 0:01:22]} Qe7 {[%emt 0:09:37]} 17. Rd8+ {[%emt 0:09:47]} Kf7 {[%emt 0:05:11]} 18. Qxe7+ {[%emt 0:01:19]} Kxe7 {[%emt 0:00:46]} 19. Rfd1 {[%emt 0:00:29]} b6 {[%emt 0:03:41]} 20. f3 {[%emt 0:01:06]} Bb7 {[%emt 0:01:16]} 21. Rxa8 {[%emt 0:08:21]} Bxa8 {[%emt 0:00:04]} 22. Kf2 {[%emt 0:00:30]} Bb7 {[%emt 0:01:36]} 23. Ke3 {[%emt 0:00:33]} Bc8 {[%emt 0:02:42]} 24. b4 {[%emt 0:01:24]} Be6 {[%emt 0:05:29]} 25. a4 {[%emt 0:00:31]} Ne8 {[%emt 0:03:10]} 26. b5 {[%emt 0:03:44]} c5 {[%emt 0:02:37]} 27. Nd5+ {[%emt 0:00:28]} Bxd5 {[%emt 0:01:06]} 28. exd5 {[%emt 0:00:26]} Nd6 {[%emt 0:03:57]} 29. Re1 {[%emt 0:04:45]} Nf5+ {[%emt 0:05:33]} 30. Kd3 {[%emt 0:00:47]} Kd6 {[%emt 0:01:10]} 31. c4 {[%emt 0:00:40]} g5 {[%emt 0:06:52] normal} 1/2-1/2

[Event "GER-ch Youth U10 2019"]
[Site "Willingen"]
[Date "2019.06.10"]
[Round "4.6"]
[White "Malinowsky, Levi"]
[Black "Dordevic, Tom"]
[Result "1/2-1/2"]
[ECO "B43"]
[WhiteElo "1400"]
[BlackElo "1158"]
[Annotator "NA"]
[PlyCount "28"]
[EventDate "2019.06.07"]
[EventType "swiss"]
[EventRounds "11"]
[EventCountry "GER"]
[SourceTitle "playchess.com"]
[Source "ChessBase"]
[SourceQuality "1"]
[TimeControl "40/4500+30:900+30"]

1. e4 {[%emt 0:00:00]} c5 {[%emt 0:00:00]} 2. Nf3 {[%emt 0:00:04]} e6 {[%emt 0:00:00]} 3. d4 {[%emt 0:00:08]} cxd4 {[%emt 0:00:02]} 4. Nxd4 {[%emt 0:00:13]} a6 {[%emt 0:00:13]} 5. Nc3 {[%emt 0:00:52]} Qc7 {[%emt 0:00:47]} 6. Bd3 {[%emt 0:01:26]} Nc6 {[%emt 0:00:52]} 7. Nb3 {[%emt 0:01:06]} Nf6 {[%emt 0:01:54]} 8. O-O {[%emt 0:02:08]} Be7 {[%emt 0:01:47]} 9. f4 {[%emt 0:02:01]} d6 {[%emt 0:01:33]} 10. Be3 {[%emt 0:01:39]} b5 {[%emt 0:02:38]} 11. a3 {[%emt 0:02:00]} Bb7 {[%emt 0:05:08]} 12. Qf3 {[%emt 0:01:47]} Rd8 {[%emt 0:06:39]} 13. Ne2 {[%emt 0:10:44]} d5 {[%emt 0:21:28]} 14. e5 {[%emt 0:01:38]} Ne4 {[%emt 0:02:17] normal} 1/2-1/2

[Event "GER-ch Youth U10 2019"]
[Site "Willingen"]
[Date "2019.06.10"]
[Round "4.7"]
[White "Haubold, Sebastian Marcel"]
[Black "Scheerer, Julian"]
[Result "1/2-1/2"]
[ECO "C96"]
[WhiteElo "1506"]
[BlackElo "1395"]
[Annotator "NA"]
[PlyCount "114"]
[EventDate "2019.06.07"]
[EventType "swiss"]
[EventRounds "11"]
[EventCountry "GER"]
[SourceTitle "playchess.com"]
[Source "ChessBase"]
[SourceQuality "1"]
[TimeControl "40/4500+30:900+30"]

1. e4 {[%emt 0:00:00]} e5 {[%emt 0:00:00]} 2. Nf3 {[%emt 0:00:00]} Nc6 {[%emt 0:00:00]} 3. Bb5 {[%emt 0:01:08]} a6 {[%emt 0:00:00]} 4. Ba4 {[%emt 0:00:41]} Nf6 {[%emt 0:00:23]} 5. O-O {[%emt 0:00:35]} Be7 {[%emt 0:00:43]} 6. Re1 {[%emt 0:01:27]} b5 {[%emt 0:02:06]} 7. Bb3 {[%emt 0:01:18]} O-O {[%emt 0:00:51]} 8. c3 {[%emt 0:01:38]} d6 {[%emt 0:00:57]} 9. h3 {[%emt 0:02:07]} Na5 {[%emt 0:02:01]} 10. Bc2 {[%emt 0:01:48]} c5 {[%emt 0:01:07]} 11. d4 {[%emt 0:04:12]} Nc6 {[%emt 0:02:01]} 12. Be3 {[%emt 0:05:59]} Qc7 {[%emt 0:04:15]} 13. Nbd2 {[%emt 0:05:41]} g6 {[%emt 0:03:38]} 14. Rc1 {[%emt 0:06:55]} Nh5 {[%emt 0:02:53]} 15. dxc5 {[%emt 0:06:42]} dxc5 {[%emt 0:01:05]} 16. Nh2 {[%emt 0:01:13]} Ng7 {[%emt 0:03:40]} 17. Bh6 {[%emt 0:02:40]} Be6 {[%emt 0:01:43]} 18. Re3 {[%emt 0:09:58]} c4 {[%emt 0:03:54]} 19. Qf3 {[%emt 0:11:00]} Rfd8 {[%emt 0:02:44]} 20. Re2 {[%emt 0:06:01]} Rd7 {[%emt 0:02:14]} 21. Ng4 {[%emt 0:04:09]} Qd8 {[%emt 0:02:47]} 22. Qg3 {[%emt 0:02:02]} Bh4 {[%emt 0:05:17]} 23. Qe3 {[%emt 0:01:46]} Nh5 {[%emt 0:03:52]} 24. Qc5 {[%emt 0:01:16]} Qc7 {[%emt 0:01:25]} 25. Nf3 {[%emt 0:00:58]} Be7 {[%emt 0:01:55]} 26. Qe3 {[%emt 0:00:16]} Nf4 {[%emt 0:02:01]} 27. Ree1 {[%emt 0:01:45]} Nd3 {[%emt 0:03:39]} 28. Bxd3 {[%emt 0:00:27]} Rxd3 {[%emt 0:01:19]} 29. Qe2 {[%emt 0:00:13]} Rad8 {[%emt 0:02:18]} 30. Rc2 {[%emt 0:01:54]} Qd6 {[%emt 0:00:58]} 31. Rd2 {[%emt 0:01:12]} Rxd2 {[%emt 0:00:33]} 32. Qxd2 {[%emt 0:00:10]} Qxd2 {[%emt 0:00:09]} 33. Bxd2 {[%emt 0:00:04]} a5 {[%emt 0:01:21]} 34. Be3 {[%emt 0:00:17]} f6 {[%emt 0:00:48]} 35. Kf1 {[%emt 0:00:43]} b4 {[%emt 0:00:46]} 36. Ke2 {[%emt 0:00:07]} Kf7 {[%emt 0:00:39]} 37. Rd1 {[%emt 0:00:15]} Ke8 {[%emt 0:00:28]} 38. Rxd8+ {[%emt 0:00:08]} Kxd8 {[%emt 0:00:14]} 39. Kd2 {[%emt 0:00:11]} Kc7 {[%emt 0:00:35]} 40. Kc2 {[%emt 0:00:16]} Kd6 {[%emt 0:01:48]} 41. Bd2 {[%emt 0:19:21]} Kc5 {[%emt 0:16:12]} 42. Be3+ {[%emt 0:01:47]} Kb5 {[%emt 0:00:28]} 43. Bd2 {[%emt 0:00:00]} b3+ {[%emt 0:00:00]} 44. Kb1 {[%emt 0:00:00]} bxa2+ {[%emt 0:00:00]} 45. Kxa2 {[%emt 0:00:00]} Nb8 {[%emt 0:00:00]} 46. Ne1 {[%emt 0:00:00]} Na6 {[%emt 0:00:00]} 47. Be3 {[%emt 0:00:00]} h5 {[%emt 0:00:00]} 48. Nh2 {[%emt 0:00:00]} Nc5 {[%emt 0:00:00]} 49. Bxc5 {[%emt 0:00:00]} Bxc5 {[%emt 0:00:00]} 50. f3 {[%emt 0:00:00]} f5 {[%emt 0:00:00]} 51. Nc2 {[%emt 0:00:00]} fxe4 {[%emt 0:00:00]} 52. fxe4 {[%emt 0:00:00]} Ka4 {[%emt 0:00:00]} 53. Na3 {[%emt 0:00:00]} g5 {[%emt 0:00:00]} 54. Nf3 {[%emt 0:00:00]} g4 {[%emt 0:00:47]} 55. hxg4 {[%emt 0:00:00]} hxg4 {[%emt 0:00:43]} 56. Nxe5 {[%emt 0:00:00]} Bxa3 {[%emt 0:01:23]} 57. bxa3 {[%emt 0:00:00]} Kb5 {[%emt 0:00:52] normal} 1/2-1/2

[Event "GER-ch Youth U10 2019"]
[Site "Willingen"]
[Date "2019.06.10"]
[Round "4.8"]
[White "Jahnz, Laurin"]
[Black "Navarro Jahnke, Leo"]
[Result "0-1"]
[ECO "B29"]
[WhiteElo "1497"]
[BlackElo "1334"]
[Annotator "NA"]
[PlyCount "35"]
[EventDate "2019.06.07"]
[EventType "swiss"]
[EventRounds "11"]
[EventCountry "GER"]
[SourceTitle "playchess.com"]
[Source "ChessBase"]
[SourceQuality "1"]
[TimeControl "40/4500+30:900+30"]

1. e4 {[%emt 0:00:00]} c5 {[%emt 0:00:00]} 2. Nf3 {[%emt 0:00:00]} Nf6 {[%emt 0:00:00]} 3. e5 {[%emt 0:00:00]} Nd5 4. Nc3 {[%emt 0:00:27]} e6 {[%emt 0:00:01]} 5. Nxd5 {[%emt 0:00:09]} exd5 {[%emt 0:00:01]} 6. c3 {[%emt 0:01:05]} d6 {[%emt 0:00:12]} 7. exd6 {[%emt 0:00:13]} Bxd6 {[%emt 0:00:54]} 8. d4 {[%emt 0:00:25]} O-O {[%emt 0:00:10]} 9. Be2 {[%emt 0:00:23]} Nc6 {[%emt 0:00:27]} 10. h3 {[%emt 0:00:22]} Bf5 {[%emt 0:01:52]} 11. O-O {[%emt 0:00:23]} b6 {[%emt 0:00:13]} 12. Be3 {[%emt 0:00:33]} Re8 {[%emt 0:01:19]} 13. Re1 {[%emt 0:01:58]} c4 {[%emt 0:03:35]} 14. Rc1 {[%emt 0:01:34]} b5 {[%emt 0:00:15]} 15. b3 {[%emt 0:03:59]} Ba3 {[%emt 0:00:44]} 16. bxc4 {[%emt 0:06:18]} Bxc1 {[%emt 0:00:16]} 17. Bxc1 {[%emt 0:00:54]} bxc4 {[%emt 0:00:22]} 18. Qa4 {[%emt 0:02:36] normal} 0-1